Cogmind - Beta 15 @@@ ROGUE MODE // 2025.08.12 @ 20:05:02 Player: beans Result: Destroyed by HQ-7LO(R) with Subdweller Machine Gun Performance ------------- Evolutions (0) 0 Regions Visited (2) 400 Robots Destroyed (7) 35 Value Destroyed (188) 188 Prototype IDs (0) 0 Alien Tech Used (0) 0 Bonus (0) 0 TOTAL SCORE: 623 Bonus ------- None Cogmind --------- Core Integrity 0/250 Matter 300/300 Energy 172/200 System Corruption 0% Temperature Cool (0) Movement Core (200) Ox3 Location -10/Subcaves Parts ------- > --- POWER (1) -------- Subdweller Power Source > --- PROPULSION (2) --- (None) > --- UTILITY (2) ------ Makeshift Light Armor Plating > --- WEAPON (2) ------- Riot Gun > --- INVENTORY (5) ---- Scrap Shield Fragment (44) Peak State ------------ > --- POWER ------------ Subdweller Power Source > --- PROPULSION ------- Aluminum Leg Aluminum Leg > --- UTILITY ---------- Makeshift Light Armor Plating > --- WEAPON ----------- Riot Gun Subdweller Laser > --- INVENTORY -------- Medium Laser [Rating: 13] Favorites ----------- Power Subdweller Power Source Engine Subdweller Power Source Propulsion Aluminum Leg Leg Aluminum Leg Utility Makeshift Light Armor Plating Protection Makeshift Light Armor Plating Weapon Riot Gun Energy Gun Riot Gun Build | -11 -10 -10 ------- Run | Yrd Mat Sub Slots Evolved . | . . . Power . | . . . Propulsion . | . . . Utility . | . . . Weapon . | . . . Parts Attached 9 | 4 1 4 Power 2 | 1 . 1 Engine 2 | 1 . 1 Core . | . . . Reactor . | . . . Propulsion 2 | 2 . . Treads . | . . . Leg 2 | 2 . . Wheel . | . . . Hover . | . . . Flight . | . . . Utility 1 | . . 1 Device . | . . . Storage . | . . . Processor . | . . . Hackware . | . . . Protection 1 | . . 1 Artifact . | . . . Weapon 4 | 1 1 2 Energy Gun 4 | 1 1 2 Energy Cannon . | . . . Ballistic Gun . | . . . Ballistic Cannon . | . . . Launcher . | . . . Special Weapon . | . . . Impact Weapon . | . . . Slashing Weapon . | . . . Piercing Weapon . | . . . Special Melee Weapon . | . . . Unidentified Prototypes . | . . . Parts Lost 5 | . . 5 Power 1 | . . 1 Propulsion 2 | . . 2 Utility . | . . . Weapon 2 | . . 2 Highest Loss Streak 2 | . . 2 To Critical Strikes . | . . . Average Backups . | . . . Power . | . . . Propulsion . | . . . Utility . | . . . Weapon . | . . . Tool/Special . | . . . Unused Backups 1 | . . 1 Power . | . . . Propulsion . | . . . Utility . | . . . Weapon 1 | . . 1 Tool/Special . | . . . Average Slot Usage (%) 51 | . 57 49 Engine 12 | . 14 12 Leg 13 | . 28 9 Protection 8 | . . 10 Energy Gun 16 | . 14 16 Peak Build Rating 13 | 4 4 13 Average Rating 7 | 3 3 8 On Entrance 2 | . 4 4 Naked Turns . | . . . Heaviest Build 16 | 4 5 16 Greatest Support 20 | 20 20 20 Greatest Overweight (x) 5 | . . 5 Average Overweight (x) 1 | . . 2 Largest Inventory Capacity 5 | 5 5 5 Average Capacity 5 | 5 5 5 Most Carried 4 | 4 1 2 Average Carried . | . . . Final Capacity 5 | 5 5 5 Final Carried 1 | . . 1 Class Distribution -------------------- 100% | Mutant Dominant Class ---------------- Mutant | -10/Materials Mutant | -10/Subcaves Resources | -11 -10 -10 ----------- Run | Yrd Mat Sub Matter Collected 300 | 240 . 60 Remotely . | . . . Salvage Created 313 | 99 . 214 Parts 15 | 7 . 8 Haulers Intercepted . | . . . Recyclers Shooed . | . . . Parts Field Recycled . | . . . Retrieved Matter . | . . . Parts Self-Destructed 2 | . . 2 Prevented 3 | . . 3 Kills | -11 -10 -10 ------- Run | Yrd Mat Sub Combat Hostiles Destroyed 5 | . . 5 Guns 5 | . . 5 Classes Destroyed 5 | 2 . 3 Tunneler 1 | 1 . . Recycler 1 | 1 . . Swarmer 1 | . . 1 Sentry 1 | . . 1 Subdweller 3 | . . 3 Best Kill Streak 2 | 2 . 2 Combat Bots Only 2 | . . 2 Max Kills in Single Turn 1 | 1 . 1 Gunslinging . | . . . Exploded . | . . . Melee . | . . . Uniques/NPCs Destroyed . | . . . Combat | -11 -10 -10 -------- Run | Yrd Mat Sub Hostile Shots Fired 62 | . . 62 Missed 16 | . . 16 Hits 46 | . . 46 Projectile 46 | . . 46 Damage Taken 787 | . . 787 Core 258 | . . 258 Absorbed by Shields . | . . . Core Remaining (%) 100 | 100 . . Volleys Fired 79 | 5 3 71 Largest 2 | 1 1 2 Hottest 110 | 40 50 110 Shots Fired 87 | 5 3 79 Gun 87 | 5 3 79 Cannon . | . . . Launcher . | . . . Special . | . . . Kinetic . | . . . Thermal 58 | 5 3 50 Explosive . | . . . Electromagnetic 29 | . . 29 Robot Hit Streak 7 | 2 . 7 Robot Miss Streak 3 | 1 . 3 Penetration Max . | . . . Secondary Targets . | . . . Shots Hit Robots 48 | 3 . 45 Core Hits 14 | 3 . 11 Critical Kills . | . . . Critical Parts Destroyed . | . . . Critical Strikes 6 | . . 6 Burn 6 | . . 6 Melee Attacks . | . . . Impact . | . . . Slashing . | . . . Piercing . | . . . Sneak Attacks . | . . . Combat Hostiles . | . . . Follow-up Attacks . | . . . Damage Inflicted 701 | 31 . 670 Guns 701 | 31 . 670 Cannons . | . . . Explosions . | . . . Melee . | . . . Ramming . | . . . Kinetic . | . . . Thermal 458 | 31 . 427 Explosive . | . . . Electromagnetic 243 | . . 243 Impact . | . . . Slashing . | . . . Piercing . | . . . Highest Corruption . | . . . Average Corruption . | . . . Corruption Purged . | . . . Corruption Blocked . | . . . Overload Shots . | . . . Overflow Damage . | . . . Projectiles . | . . . Explosions . | . . . Melee . | . . . Knockbacks . | . . . Impact . | . . . Kinetic . | . . . Secondary . | . . . Self-Inflicted Damage . | . . . Shots . | . . . Rammed . | . . . Targets Rammed . | . . . Kicked . | . . . Crushed . | . . . Highest Temperature 36 | 2 20 36 Average Temperature 12 | 2 10 13 Received Heat Transfer 210 | . . 210 Siege Activations . | . . . Martial Activations . | . . . Shielding Activations . | . . . Robots Disrupted . | . . . Combat Hostiles . | . . . Robots Corrupted . | . . . Combat Hostiles . | . . . Parts Fried 3 | . . 3 Impact Corruptions . | . . . Robots Melted . | . . . Combat Hostiles . | . . . Parts Melted 2 | . . 2 Heat Transferred 1545 | 75 . 1470 Parts Sabotaged . | . . . Parts Stolen . | . . . Parts Stripped . | . . . Power Chain Reactions . | . . . Alert | -11 -10 -10 ------- Run | Yrd Mat Sub Maximum Alert Level . | . . . Low Security (%) 100 | 100 100 . Level 1 . | . . . Level 2 . | . . . Level 3 . | . . . Level 4 . | . . . Level 5 . | . . . High Security . | . . . Max Security . | . . . Peak Influence 10 | 10 . . Initial . | . . . Average . | 1 . . Influence Increases 50 | 10 . 40 Destroy 0b10 Robot/C 40 | . . 40 Destroy 0b10 Robot/NC 10 | 10 . . Influence Decreases 50 | 10 . 40 Time Decay 50 | 10 . 40 Squads Dispatched 1 | . 1 . Investigation . | . . . Extermination . | . . . Reinforcement 1 | . 1 . Assault . | . . . Garrison . | . . . Intercept . | . . . Searches Triggered . | . . . Construction Impeded . | . . . Haulers Reinforced . | . . . Active Scanning Responses . | . . . Cargo Convoy Interrupts . | . . . Stealth | -11 -10 -10 --------- Run | Yrd Mat Sub Distress Signals . | . . . Communications Jammed . | . . . Distress Signals . | . . . Times Spotted 9 | . 1 8 Peak Tracking Total 2 | . 1 2 Tactical Retreats . | . . . Traps | -11 -10 -10 ------- Run | Yrd Mat Sub Traps Triggered . | . . . Indirectly . | . . . Trap Hack Attempts . | . . . Triggered . | . . . Disarmed . | . . . Reprogrammed . | . . . Reused . | . . . Traps Extracted . | . . . Installed . | . . . Triggered . | . . . Machines | -11 -10 -10 ---------- Run | Yrd Mat Sub Machines Disabled . | . . . Max in Single Turn . | . . . Machines Repaired . | . . . Machines Dismantled . | . . . Machines Sabotaged . | . . . Overloaded Fab Kills . | . . . Hacking | -11 -10 -10 --------- Run | Yrd Mat Sub Machines Accessed . | . . . Terminals . | . . . Fabricators . | . . . Repair Stations . | . . . Recycling Units . | . . . Scanalyzers . | . . . Garrison Access . | . . . Total Hacks . | . . . Successful . | . . . Failed . | . . . Catastrophic . | . . . Database Lockouts . | . . . Manual . | . . . Terminals . | . . . Fabricators . | . . . Repair Stations . | . . . Recycling Units . | . . . Scanalyzers . | . . . Garrison Access . | . . . Terminal Hacks . | . . . Fabricator Hacks . | . . . Repair Station Hacks . | . . . Recycling Unit Hacks . | . . . Scanalyzer . | . . . Garrison Access Hacks . | . . . Unauthorized Hacks . | . . . Terminals . | . . . Fabricators . | . . . Repair Stations . | . . . Recycling Units . | . . . Scanalyzers . | . . . Garrison Access . | . . . Data Cores Recovered . | . . . Used . | . . . Hacking Detections . | . . . Full Trace Events . | . . . Feedback Events . | . . . Feedback Blocked . | . . . Robot Schematics Acquired . | . . . Robots Built . | . . . Authchips . | . . . Time . | . . . Total Robot Build Rating . | . . . Part Schematics Acquired . | . . . Parts Built . | . . . Authchips . | . . . Time . | . . . Total Part Build Rating . | . . . Parts Repaired . | . . . Time . | . . . Parts Recycled . | . . . Recycled Matter . | . . . Retrieved Matter . | . . . Retrieved Components . | . . . Parts Scanalyzed . | . . . Part Schematics Acquired . | . . . Parts Damaged . | . . . Bothacking | -11 -10 -10 ------------ Run | Yrd Mat Sub Used RIF Installer . | . . . Robots Hacked . | . . . Non-combat . | . . . Combat . | . . . Robot Hacks Applied . | . . . Relay Couplers Released . | . . . Fabnet Peak Effective % . | . . . Robots Rewired . | . . . Allies Hacked . | . . . Hacks Repelled . | . . . Allies | -11 -10 -10 -------- Run | Yrd Mat Sub Total Allies . | . . . Largest Group . | . . . Highest-Rated Group . | . . . Highest-Rated Ally . | . . . Total Orders . | . . . Ally Attacks . | . . . Total Damage . | . . . Kills . | . . . Allies Corrupted . | . . . Allies Melted . | . . . Intel | -11 -10 -10 ------- Run | Yrd Mat Sub Active Infowar (turns) . | . . . Robot Analysis Total . | . . . Derelict Logs Recovered . | . . . Drone Launches . | . . . Drone Recoveries . | . . . Exploration | -11 -10 -10 ------------- Run | Yrd Mat Sub Turns Passed 789 | 59 143 587 Spaces Moved 320 | 44 52 224 Core 160 | 16 . 144 Treads . | . . . Legs 160 | 28 52 80 Wheels . | . . . Hover . | . . . Flight . | . . . Fastest Speed 50 | 50 120 120 Average Speed 160 | 94 120 182 Slowest Speed 300 | 120 120 300 Overloaded Moves . | . . . Propulsion Burnouts . | . . . Robots Hopped . | . . . Potential Cave-ins . | . . . Cave-ins Triggered . | . . . Exploration Rate (%) 12 | 3 14 19 Regions Visited 2 Branch Regions 1 Pre-discovered Areas . | . . . Known Exits Taken . | . . . Unknown Exits Taken 2 | 1 1 . Scrap Searched . | . . . Spaces Dug . | . . . Terrain Destroyed . | . . . Melee . | . . . Projectile . | . . . AOE . | . . . Terrain Rammed . | . . . Walls Destroyed . | . . . Machines Disabled . | . . . Actions | -11 -10 -10 --------- Run | Yrd Mat Sub Total 511 | 56 130 325 Wait 87 | . 73 14 Move 318 | 43 51 224 Hop . | . . . Pick Up 11 | 4 1 6 Fast Attach . | . . . Attach 11 | 4 1 6 Detach 2 | . . 2 Swap 1 | . . 1 Drop 2 | . 1 1 Fire 79 | 5 3 71 Melee . | . . . Ram . | . . . Kick . | . . . Crush . | . . . Escape Stasis . | . . . Rewire . | . . . Trap . | . . . Miscellaneous . | . . . Route ------- -11/Scrapyard -10/Materials -10/Subcaves History --------- Turn | Location | Event 11 | -11/Scrapyard | Discovered new exit (range 16) 60 | -11/Scrapyard | Entered Materials 198 | -10/Materials | Discovered new exit (range 5) 203 | -10/Materials | Entered Subcaves 235 | -10/Subcaves | Ambushed by Subdwellers from Twisted Machinery 283 | -10/Subcaves | Core integrity fell below 50% 306 | -10/Subcaves | Build established: Mutant 334 | -10/Subcaves | Shifting Twisted Machinery released Mak. Light Armor Plating 359 | -10/Subcaves | Shifting Twisted Machinery released Riot Gun 390 | -10/Subcaves | Disturbed a concealed Subdweller 519 | -10/Subcaves | Core integrity fell below 20% 790 | -10/Subcaves | A Subdweller sparked back to life 790 | -10/Subcaves | A Subdweller sparked back to life 790 | -10/Subcaves | A Subdweller sparked back to life 790 | -10/Subcaves | Destroyed by HQ-7LO(R) with Subdweller Machine Gun Last Messages --------------- Corrupted Lgt. Treads self-destruct mechanism malfunctions. S-10 Pest destroyed. Lgt. Treads self-destruct mechanism malfunctions. Corrupted Beam Rifle self-destruct mechanism malfunctions. Acquired 15 matter. Subatomizers dissect the Corrupted Beam Rifle. Subatomizers dissect the Corrupted Sub. Beam Cannon. Subatomizers dissect the Corrupted Sub. Beam Cannon, destroying it. Acquired Scrap Shield Fragment. NS-HQ0(R) creaks and sparks as it begins to move. W0-15C(R) creaks and sparks as it begins to move. HQ-7LO(R) creaks and sparks as it begins to move. Map ----- +----------------------------------------------------+ | ###????# "" ### #???? ????????? | | ##?#### "" ####?# ##?????###?????????? | | ### # "" ##????## "%%&#??????????????????? | | ## "" ##??????# " "& #??????????????????? | | # "" "##???????# " #??????????????????? | | # # #???????# #??????????????????? | | #""## #??????# #??????????????????? | | ""## #??????# "## #??????????????????? | | " " """#??????#""?# ###??????????????????? | | """ ""##?????#" #????????????????????? | | " #????? " ##????????????????????? | | ### #???## """ ??????????????????????? | | #### ####" " ??????????????????????? | | # #?## ### ?? #??????????????????????? | | # ##??### ### #?? #???????????????????????? | | ##???###### #??#" #???????????????????????? | | ##### ### ####""#???????????????????????? | | ##""##??????????????????????? | | """ ##?????????????????????? | | ## ### " #?????????????????????? | | ####?#### #?????????????????????? | | ##?????# # #?????????????????????? | | #?????## # ##?????????????????????? | | ##??????### # ######??????????????????? | | ##????????## ### # <#??????????????????? | | ?????###### ### @< &<#??????????????????? | | ?????# #?### R R#??????????????????? | | ?????# #???##